fUST/lending_fUST_20250717
["ID","MTS","AMOUNT","RATE_DAILY","PERIOD"]
[372657600,1752736251505,-1500.0,0.00022035,2]
[372657601,1752736251515,-1605.85948016,0.00022035,2]
[372657602,1752736251525,-586.31190994,0.00022035,2]
[372657603,1752736251534,-1003.15503428,0.00022035,2]
[372657604,1752736251548,-1500.0,0.00022035,2]
[372657605,1752736251558,-12225.84083745,0.00022038,6]
[372657606,1752736251567,-151.0,0.00022038,7]
[372657607,1752736251576,-151.0,0.00022038,7]
[372657608,1752736251586,-193.2450441,0.00022046,2]
[372657609,1752736251596,-1500.0,0.00022048,2]
[372657610,1752736251605,-1500.0,0.00022055,2]
[372657611,1752736251615,-1500.0,0.00022055,2]
[372657612,1752736251625,-1501.31897078,0.00022055,2]
[372657613,1752736251634,-250.0,0.00022069,2]
[372657614,1752736251644,-1208.03025,0.0002207,8]
[372657615,1752736251658,-3500.0,0.00022088,2]
[372657616,1752736251668,-377.3,0.00022202,5]
[372657617,1752736251678,-231.28369723,0.00022218,2]
[372657618,1752736251688,-460.0,0.00022222,2]
[372657619,1752736251698,-1730.44,0.00022222,2]
[372657620,1752736251707,-2711.28,0.00022224,2]
[372657621,1752736251718,-620.58,0.00022224,2]
[372657622,1752736251729,-4282.64,0.00022224,2]
[372657623,1752736251739,-460.0,0.00022224,2]
[372657624,1752736251749,-2149.34,0.00022224,2]
[372657625,1752736251758,-1109.94,0.00022224,2]
[372657626,1752736251768,-1666.66,0.00022224,2]
[372657627,1752736251778,-500.27,0.00022224,2]
[372657628,1752736251787,-343.73267151,0.00022225,2]
[372657629,1752736251797,-1352.55003994,0.00022227,2]
[372657630,1752736251807,-603.69,0.00022229,2]
[372657631,1752736251817,-549.63,0.00022229,2]
[372657632,1752736251826,-460.0,0.00022229,2]
[372657633,1752736251836,-460.0,0.00022229,2]
[372657634,1752736251845,-544.11,0.00022232,2]
[372657635,1752736251856,-500.01,0.00022232,2]
[372657636,1752736251866,-578.5,0.00022232,2]
[372657637,1752736251875,-559.42,0.00022232,2]
[372657638,1752736251885,-460.0,0.00022232,2]
[372657639,1752736251894,-2696.28,0.00022232,2]
[372657640,1752736251907,-1198.96,0.00022232,2]
[372657641,1752736251917,-460.0,0.00022232,2]
[372657642,1752736251926,-609.93,0.00022232,2]
[372657643,1752736251936,-726.41,0.00022232,2]
[372657644,1752736251946,-471.63,0.00022232,2]
[372657645,1752736251956,-151.0,0.00022232,7]
[372657646,1752736251965,-484.16,0.00022232,2]
[372657647,1752736251975,-1201.85,0.00022232,2]
[372657648,1752736251985,-613.55,0.00022232,2]
[372657649,1752736251995,-460.0,0.00022232,2]
[372657650,1752736252005,-587.44,0.00022232,2]
[372657651,1752736252014,-823.94,0.00022232,2]
[372657652,1752736252024,-2063.12,0.00022232,2]
[372657653,1752736252034,-502.26,0.00022232,2]
[372657654,1752736252043,-460.0,0.00022232,2]
[372657655,1752736252052,-1892.76,0.00022232,2]
[372657656,1752736252061,-460.0,0.00022232,2]
[372657657,1752736252071,-736.2,0.00022232,2]
[372657658,1752736252081,-1381.68,0.00022232,2]
[372657659,1752736252091,-460.0,0.00022232,2]
[372657660,1752736252101,-537.14,0.00022232,2]
[372657661,1752736252111,-2785.0,0.00022233,2]
[372657662,1752736252121,-2455.22216815,0.00022233,2]
[372657663,1752736252130,-939.41,0.00022233,2]
[372657664,1752736252140,-634.35,0.00022237,2]
[372657665,1752736252154,-877.0,0.00022245,2]
[372657666,1752736252163,-825.0,0.00022245,2]
[372657667,1752736252173,-660.0,0.00022254,2]
[372657668,1752736252183,-494.936706,0.00022266,2]
[372657669,1752736252193,-12225.84083745,0.00022279,6]
[372657670,1752736252203,-7825.9889641,0.00022285,2]
[372657671,1752736252213,-928.17295174,0.00022333,3]
[372657672,1752736252223,-202.08182537,0.00022333,3]
[372657673,1752736252232,-172.0,0.00022333,3]
[372657674,1752736252242,-172.0,0.00022333,3]
[372657675,1752736252252,-172.0,0.00022333,3]
[372657676,1752736252262,-172.0,0.00022333,3]
[372657677,1752736252272,-172.0,0.00022333,3]
[372657678,1752736252282,-173.6841718,0.00022333,3]
[372657679,1752736252292,-152.0,0.00022333,3]
[372657680,1752736252302,-152.0,0.00022333,3]
[372657681,1752736252312,-152.0,0.00022333,3]
[372657682,1752736252322,-152.0,0.00022333,3]
[372657683,1752736252331,-152.0,0.00022333,3]
[372657684,1752736252340,-152.0,0.00022333,3]
[372657685,1752736252349,-152.0,0.00022333,3]
[372657686,1752736252358,-152.0,0.00022333,3]
[372657687,1752736252368,-152.0,0.00022333,3]
[372657688,1752736252377,-152.0,0.00022333,3]
[372657689,1752736252387,-152.0,0.00022333,3]
[372657690,1752736252399,-152.0,0.00022333,3]
[372657691,1752736252409,-152.0,0.00022333,3]
[372657692,1752736252418,-152.0,0.00022333,3]
[372657693,1752736252428,-152.0,0.00022333,3]
[372657694,1752736252438,-152.0,0.00022333,3]
[372657695,1752736252447,-152.0,0.00022333,3]
[372657696,1752736252457,-152.0,0.00022333,3]
[372657697,1752736252466,-152.0,0.00022333,3]
[372657698,1752736252476,-152.0,0.00022333,3]
[372657699,1752736252486,-152.0,0.00022333,3]
[372657700,1752736252496,-152.0,0.00022333,3]
[372657701,1752736252506,-152.0,0.00022333,3]
[372657702,1752736252518,-152.0,0.00022333,3]
[372657703,1752736252527,-152.0,0.00022333,3]
[372657704,1752736252539,-152.0,0.00022333,3]
[372657705,1752736252548,-152.0,0.00022333,3]
[372657706,1752736252557,-152.0,0.00022333,3]
[372657707,1752736252566,-152.0,0.00022333,3]
[372657708,1752736252575,-152.0,0.00022333,3]
[372657709,1752736252584,-152.0,0.00022333,3]
[372657710,1752736252593,-152.0,0.00022333,3]
[372657711,1752736252602,-152.0,0.00022333,3]
[372657712,1752736252612,-152.0,0.00022333,3]
[372657713,1752736252622,-152.0,0.00022333,3]
[372657714,1752736252631,-152.0,0.00022333,3]
[372657715,1752736252640,-152.0,0.00022333,3]
[372657716,1752736252649,-152.0,0.00022333,3]
[372657717,1752736252658,-152.0,0.00022333,3]
[372657718,1752736252667,-152.0,0.00022333,3]
[372657719,1752736252677,-152.0,0.00022333,3]
[372657720,1752736252686,-152.0,0.00022333,3]
[372657721,1752736252696,-152.0,0.00022333,3]
[372657722,1752736252706,-152.0,0.00022333,3]
[372657723,1752736252716,-152.0,0.00022333,3]
[372657724,1752736252726,-152.0,0.00022333,3]
[372657725,1752736252735,-152.0,0.00022333,3]
[372657726,1752736252745,-152.0,0.00022333,3]
[372657727,1752736252755,-152.0,0.00022333,3]
[372657728,1752736252764,-152.0,0.00022333,3]
[372657729,1752736252774,-152.0,0.00022333,3]
[372657730,1752736252785,-152.0,0.00022333,3]
[372657731,1752736252794,-152.0,0.00022333,3]
[372657732,1752736252804,-152.0,0.00022333,3]
[372657733,1752736252814,-152.0,0.00022333,3]
[372657734,1752736252824,-152.0,0.00022333,3]
[372657735,1752736252833,-152.0,0.00022333,3]
[372657736,1752736252842,-152.0,0.00022333,3]
[372657737,1752736252851,-152.0,0.00022333,3]
[372657738,1752736252861,-152.0,0.00022333,3]
[372657739,1752736252870,-152.0,0.00022333,3]
[372657740,1752736252880,-152.0,0.00022333,3]
[372657741,1752736252890,-161.32862197,0.00022333,3]
[372657742,1752736252900,-160.0,0.00022333,3]
[372657743,1752736252910,-163.12905997,0.00022333,3]
[372657744,1752736252920,-533.02226849,0.00022333,3]
[372657745,1752736252929,-154.0,0.00022333,3]
[372657746,1752736252939,-154.0,0.00022333,3]
[372657747,1752736252949,-154.0,0.00022333,3]
[372657748,1752736252958,-211.33947274,0.00022333,3]
[372657749,1752736252968,-324.0,0.00022333,3]
[372657750,1752736252978,-183.67082305,0.00022333,3]
[372657751,1752736252987,-3431.63044558,0.00022335,2]
[372657752,1752736252998,-162.95721283,0.00022356,2]
[372657753,1752736253007,-162.95721285,0.00022356,2]
[372657754,1752736253017,-327.95618655,0.0002247,2]
[372657755,1752736253027,-460.0,0.00022496,2]
[372657756,1752736253170,-1730.44,0.00022496,2]
[372657757,1752736253181,-2711.28,0.00022498,2]
[372657758,1752736253191,-620.58,0.00022498,2]
[372657759,1752736253201,-4282.64,0.00022498,2]
[372657760,1752736253211,-460.0,0.00022498,2]
[372657761,1752736253221,-2149.34,0.00022498,2]
[372657762,1752736253231,-1109.94,0.00022498,2]
[372657763,1752736253241,-1666.66,0.00022498,2]
[372657764,1752736253251,-500.27,0.00022498,2]
[372657765,1752736253261,-1003.965593,0.000225,2]
[372657766,1752736253271,-603.69,0.00022503,2]
[372657767,1752736253281,-549.63,0.00022503,2]
[372657768,1752736253291,-460.0,0.00022503,2]
[372657769,1752736253300,-460.0,0.00022503,2]
[372657770,1752736253310,-544.11,0.00022506,2]
[372657771,1752736253320,-500.01,0.00022506,2]
[372657772,1752736253330,-578.5,0.00022506,2]
[372657773,1752736253340,-559.42,0.00022506,2]
[372657774,1752736253349,-460.0,0.00022506,2]
[372657775,1752736253359,-2696.28,0.00022506,2]
[372657776,1752736253369,-1198.96,0.00022506,2]
[372657777,1752736253379,-460.0,0.00022506,2]
[372657778,1752736253388,-609.93,0.00022506,2]
[372657779,1752736253398,-726.41,0.00022506,2]
[372657780,1752736253408,-471.63,0.00022506,2]
[372657781,1752736253418,-484.16,0.00022506,2]
[372657782,1752736253428,-1201.85,0.00022506,2]
[372657783,1752736253437,-613.55,0.00022506,2]
[372657784,1752736253447,-460.0,0.00022506,2]
[372657785,1752736253457,-587.44,0.00022506,2]
[372657786,1752736253466,-823.94,0.00022506,2]
[372657787,1752736253476,-2063.12,0.00022506,2]
[372657788,1752736253486,-502.26,0.00022506,2]
[372657789,1752736253496,-470.99116666,0.00022506,2]
[372657790,1752736253505,-1892.76,0.00022506,2]
[372657791,1752736253515,-460.0,0.00022506,2]
[372657792,1752736253525,-736.2,0.00022506,2]
[372657793,1752736253535,-1381.68,0.00022506,2]
[372657794,1752736253549,-460.0,0.00022506,2]
[372657795,1752736253558,-537.14,0.00022506,2]
[372657796,1752736253568,-2785.0,0.00022507,2]
[372657797,1752736253579,-939.41,0.00022507,2]
[372657798,1752736253590,-151.0,0.00022511,7]
[372657799,1752736253601,-634.35,0.00022511,2]
[372657800,1752736253611,-877.0,0.00022519,2]
[372657801,1752736253622,-825.0,0.00022519,2]
[372657802,1752736253632,-245.0,0.00022519,2]
[372657803,1752736253642,-12225.84083745,0.00022521,7]
[372657804,1752736253654,-1500.0,0.00022544,2]
[372657805,1752736253664,-2113.72738664,0.0002255,2]
[372657806,1752736253674,-504.94301263,0.0002255,2]
[372657807,1752736253685,-647.0,0.00022582,2]
[372657808,1752736253695,-2155.0,0.00022582,2]
[372657809,1752736253706,-968.0,0.00022582,2]
[372657810,1752736253716,-2000.0,0.00022583,2]
[372657811,1752736253726,-2000.0,0.00022583,2]
[372657812,1752736253736,-2000.0,0.00022596,2]
[372657813,1752736253746,-189.144052,0.000226,7]
[372657814,1752736253756,-189.144052,0.000226,7]
[372657815,1752736253766,-151.0,0.000226,7]
[372657816,1752736253776,-151.0,0.000226,7]
[372657817,1752736253786,-151.0,0.000226,7]
[372657818,1752736253796,-151.0,0.000226,7]
[372657819,1752736253805,-151.0,0.000226,7]
[372657820,1752736253815,-226.744143,0.000226,7]
[372657821,1752736253825,-151.0,0.000226,7]
[372657822,1752736253835,-2000.0,0.00022603,2]
[372657823,1752736253844,-2000.0,0.00022603,2]
[372657824,1752736253854,-746.201212,0.00022603,2]
[372657825,1752736253864,-200.66573719,0.00022603,2]
[372657826,1752736253874,-162.95721283,0.0002263,2]
[372657827,1752736253884,-162.95721285,0.0002263,2]
[372657828,1752736253894,-162.95721283,0.0002263,2]
[372657829,1752736253905,-2380.22841907,0.00022636,2]
[372657830,1752736253914,-377.3,0.00022665,5]
[372657831,1752736253924,-2935.39259025,0.0002269,2]
[372657832,1752736253934,-3000.0,0.000227,2]
[372657833,1752736253944,-3000.0,0.0002271,2]
[372657834,1752736253954,-150.0,0.00022716,2]
[372657835,1752736253964,-150.0,0.00022716,2]
[372657836,1752736253973,-150.0,0.00022716,2]
[372657837,1752736253983,-150.0,0.00022716,2]
[372657838,1752736253992,-150.0,0.00022716,2]
[372657839,1752736254002,-150.0,0.00022716,2]
[372657840,1752736254012,-150.0,0.00022716,2]
[372657842,1752736254022,-3000.0,0.0002272,2]
[372657843,1752736254032,-3000.0,0.0002273,2]
[372657844,1752736254042,-3000.0,0.0002274,2]
[372657845,1752736254052,-3000.0,0.0002275,2]
[372657846,1752736254062,-3000.0,0.0002276,2]
[372657847,1752736254072,-12225.84083745,0.00022762,7]
[372657848,1752736254081,-3431.63044558,0.0002277,2]
[372657849,1752736254091,-3000.0,0.0002277,2]
[372657850,1752736254101,-151.0,0.0002277,7]
[372657851,1752736254111,-155.906261,0.0002277,7]
[372657852,1752736254120,-460.0,0.0002277,2]
[372657853,1752736254130,-1730.44,0.0002277,2]
[372657854,1752736254140,-2711.28,0.00022772,2]
[372657855,1752736254150,-620.58,0.00022772,2]
[372657856,1752736254160,-4282.64,0.00022772,2]
[372657857,1752736254170,-460.0,0.00022772,2]
[372657858,1752736254180,-2149.34,0.00022772,2]
[372657859,1752736254190,-1109.94,0.00022772,2]
[372657860,1752736254200,-1666.66,0.00022772,2]
[372657861,1752736254210,-500.27,0.00022772,2]
[372657862,1752736254219,-603.69,0.00022777,2]
[372657863,1752736254229,-549.63,0.00022777,2]
[372657864,1752736254239,-460.0,0.00022777,2]
[372657865,1752736254249,-460.0,0.00022777,2]
[372657866,1752736254259,-3000.0,0.0002278,2]
[372657867,1752736254269,-544.11,0.0002278,2]
[372657868,1752736254279,-500.01,0.0002278,2]
[372657869,1752736254288,-578.5,0.0002278,2]
[372657870,1752736254298,-559.42,0.0002278,2]
[372657871,1752736254308,-447.37297026,0.0002278,2]
[372657872,1752736254317,-2696.28,0.0002278,2]
[372657873,1752736254327,-546.91942276,0.0002278,2]
[372657874,1752736254338,-609.93,0.0002278,2]
[372657875,1752736254347,-726.41,0.0002278,2]
[372657876,1752736254356,-471.63,0.0002278,2]
[372657877,1752736254366,-484.16,0.0002278,2]
[372657878,1752736254376,-1201.85,0.0002278,2]
[372657879,1752736254386,-613.55,0.0002278,2]
[372657880,1752736254396,-460.0,0.0002278,2]
[372657881,1752736254407,-587.44,0.0002278,2]
[372657882,1752736254416,-823.94,0.0002278,2]
[372657883,1752736254426,-2063.12,0.0002278,2]
[372657884,1752736254436,-502.26,0.0002278,2]
[372657885,1752736254449,-1892.76,0.0002278,2]
[372657886,1752736254459,-460.0,0.0002278,2]
[372657887,1752736254469,-736.2,0.0002278,2]
[372657888,1752736254479,-1381.68,0.0002278,2]
[372657889,1752736254489,-537.14,0.0002278,2]
[372657890,1752736254499,-2785.0,0.00022781,2]
[372657891,1752736254509,-939.41,0.00022781,2]
[372657892,1752736254518,-634.35,0.00022785,2]
[372657893,1752736254528,-3000.0,0.0002279,2]
[372657894,1752736254539,-877.0,0.00022793,2]
[372657895,1752736254549,-825.0,0.00022793,2]
[372657896,1752736254559,-162.95721284,0.00022795,2]
[372657897,1752736254568,-3000.0,0.000228,2]
[372657898,1752736254578,-760.0,0.00022802,2]
[372657899,1752736254589,-3000.0,0.0002281,2]
[372657900,1752736254599,-3000.0,0.0002282,2]
[372657901,1752736254608,-25146.59418888,0.0002282,2]
[372657902,1752736254619,-3000.0,0.0002283,2]
[372657903,1752736254629,-3000.0,0.0002284,2]
[372657904,1752736254638,-3000.0,0.0002285,2]
[372657905,1752736254649,-3000.0,0.0002286,2]
[372657906,1752736254659,-3000.0,0.0002287,2]
[372657907,1752736254668,-150.0,0.00022873,2]
[372657908,1752736254678,-150.0,0.00022873,2]
[372657909,1752736254687,-3000.0,0.0002288,2]
[372657910,1752736254697,-3000.0,0.0002289,2]
[372657911,1752736254708,-160.0,0.00022893,3]
[372657912,1752736254718,-161.10523437,0.00022893,5]
[372657913,1752736254727,-160.0,0.00022893,5]
[372657914,1752736254737,-151.0,0.000229,7]
[372657915,1752736254747,-151.0,0.000229,7]
[372657916,1752736254756,-151.0,0.000229,7]
[372657917,1752736254766,-151.0,0.000229,7]
[372657918,1752736254776,-219.2951,0.000229,7]
[372657919,1752736254786,-189.359729,0.000229,7]
[372657920,1752736254795,-189.359729,0.000229,7]
[372657921,1752736254805,-504.272118,0.000229,7]
[372657922,1752736254814,-504.272118,0.000229,7]
[372657923,1752736254824,-169.946481,0.000229,7]
[372657924,1752736254834,-169.946481,0.000229,7]
[372657925,1752736254844,-189.144052,0.000229,7]
[372657926,1752736254854,-189.144052,0.000229,7]
[372657927,1752736254863,-151.0,0.000229,7]
[372657928,1752736254873,-151.0,0.000229,7]
[372657929,1752736254882,-151.0,0.000229,7]
[372657930,1752736254892,-3000.0,0.000229,2]
[372657931,1752736254903,-151.0,0.000229,7]
[372657932,1752736254913,-151.0,0.000229,7]
[372657933,1752736254923,-151.0,0.000229,7]
[372657934,1752736254932,-7165.8,0.000229,7]
[372657935,1752736254942,-16988.8518366,0.000229,2]
[372657936,1752736255055,-460.0,0.000229,2]
[372657937,1752736255068,-39616.0081634,0.000229,2]
[372657938,1752736255077,-3995.44,0.000229,7]
[372657939,1752736255088,-11512.00816092,0.000229,7]
[372657940,1752736255099,-21354.11183908,0.000229,7]
[372657941,1752736255110,-151.0,0.000229,7]
[372657942,1752736255120,-151.0,0.000229,7]
[372657943,1752736255130,-151.0,0.000229,7]
[372657944,1752736255140,-554.577578,0.000229,7]
[372657945,1752736255151,-554.577578,0.000229,7]
[372657946,1752736255161,-153.311633,0.000229,7]
[372657947,1752736255170,-162.95721284,0.00022904,2]
[372657948,1752736255180,-3000.0,0.0002291,2]
[372657949,1752736255190,-3000.0,0.0002292,2]
[372657950,1752736255200,-3000.0,0.0002293,2]
[372657951,1752736255209,-162.95721283,0.00022932,2]
[372657952,1752736255219,-3000.0,0.0002294,2]
[372657953,1752736255228,-3000.0,0.0002295,2]
[372657954,1752736255238,-567.012939,0.0002295,7]
[372657955,1752736255248,-567.012939,0.0002295,7]
[372657956,1752736255258,-3000.0,0.0002296,2]
[372657957,1752736255267,-3000.0,0.0002297,2]
[372657958,1752736255277,-151.0,0.0002297,7]
[372657959,1752736255287,-500.0,0.00022973,2]
[372657960,1752736255296,-500.0,0.00022973,2]
[372657961,1752736255306,-1000.0,0.0002298,2]
[372657962,1752736255315,-151.0,0.0002298,7]
[372657963,1752736255324,-3000.0,0.0002298,2]
[372657964,1752736255334,-3000.0,0.0002299,2]
[372657965,1752736255344,-9810.06450546,0.00023,2]
[372657966,1752736255354,-160.0,0.00023,3]
[372657967,1752736255363,-10858.39497564,0.00023,10]
[372657968,1752736255671,-3449.37171689,0.00023,10]
[372657969,1752736255683,-1177.51551664,0.00023,10]
[372657970,1752736256093,-532.64021596,0.00018111,2]
[372657971,1752736256103,-1235.90986316,0.00018111,2]
[372657972,1752736256113,-1235.90986316,0.00018111,2]
[372657973,1752736256123,-1235.90986316,0.00018111,2]
[372657974,1752736256132,-1235.90986316,0.00018111,2]
[372657975,1752736256142,-1235.90986316,0.00018111,2]
[372657976,1752736256152,-1235.90986316,0.00018111,2]
[372657977,1752736256161,-1235.90986316,0.00018111,2]
[372657978,1752736256171,-1235.90986316,0.00018111,2]
[372657979,1752736256181,-1235.90986316,0.00018111,2]
[372657980,1752736256191,-1235.90986316,0.00018111,2]
[372657981,1752736256200,-460.0,0.00018122,2]
[372657982,1752736256210,-272.55,0.00018396,2]
[372657983,1752736256220,-500.0,0.00019178,2]
[372657984,1752736256229,-500.0,0.00019178,2]
[372657985,1752736256239,-286.23997605,0.00019178,2]
[372657986,1752736256248,-500.0,0.00019178,2]
[372657987,1752736256257,-500.0,0.00019178,2]
[372657988,1752736256267,-500.0,0.00019178,2]
[372657989,1752736256277,-500.0,0.00019178,2]
[372657990,1752736256286,-500.0,0.00019178,2]
[372657991,1752736256295,-500.0,0.00019178,2]
[372657992,1752736256305,-500.0,0.00019178,2]
[372657993,1752736256315,-17100.59363034,0.00023,10]
[372657994,1752736256326,-14550.36,0.00023,10]
[372657995,1752736256381,-676.49551176,0.00023,10]
[372657996,1752736256461,-460.0,0.00018114,2]
[372657997,1752736256470,-242.06664328,0.00018124,2]
[372657998,1752736257113,-217.93335672,0.00018124,2]
[372657999,1752736257123,-460.0,0.00018388,2]
[372658000,1752736257132,-490.86664328,0.00023,10]
[372658001,1752736257258,170.0446033,0.00027397,120]
[372658002,1752736292084,300.8376106,0.00017568,2]
[372658003,1752736296012,202.24683189,0.00018012,2]
[372658005,1752736314211,829.387933,0.00013699,2]
[372658008,1752736347950,341.27944416,0.00018011,2]
[372658009,1752736412982,1283.92530069,0.00017118,2]
[372658010,1752736413052,1376.08475231,0.00017118,2]
[372658012,1752736465734,202.24683189,0.00018012,2]
[372658014,1752736498835,8421.6684158,0.00017118,2]
[372658015,1752736498907,6059.6586151,0.00017118,2]
[372658016,1752736519896,187.55348113,0.00018011,2]
[372658018,1752736593229,180.50256636,0.00017568,2]
[372658023,1752736682002,163.9780933,0.00018013,2]
[372658031,1752736941289,3408.30724411,0.00017114,2]
[372658032,1752736941353,10000.0,0.00017114,2]
[372658033,1752736941416,10000.0,0.00017114,2]
[372658034,1752736941478,1491.69275589,0.00017114,2]
[372658035,1752736941941,-152.0,0.00018109,2]
[372658036,1752736959355,8508.30724411,0.00017114,2]
[372658037,1752736959409,1491.69275589,0.00017114,2]
[372658040,1752737191289,163.97809328,0.00018008,2]
[372658042,1752737272038,8344.32915083,0.00018,2]
[372658043,1752737272110,10000.0,0.00018,2]
[372658044,1752737272178,10000.0,0.00018,2]
[372658045,1752737272247,7263.79191486,0.00018,2]
[372658046,1752737276110,152.0,0.00018,2]
[372658047,1752737276176,2736.20808514,0.00018,2]
[372658048,1752737276235,6364.33189235,0.00018,2]
[372658052,1752737295438,414.56140898,0.00010618,2]
[372658053,1752737297310,3221.10669867,0.000125,2]
[372658054,1752737297378,8145.60817638,0.000125,2]
[372658055,1752737308665,277.45352444,0.00014114,2]
[372658056,1752737310669,282.29045522,0.0001,2]
[372658057,1752737316041,1294.64784396,0.00017,2]
[372658058,1752737316106,10000.0,0.00017,2]
[372658059,1752737316168,10000.0,0.00017,2]
[372658060,1752737316229,10000.0,0.00017,2]
[372658061,1752737316293,10000.0,0.00017,2]
[372658062,1752737316358,10000.0,0.00017,2]
[372658063,1752737316387,7026.30410934,0.00017,2]
[372658064,1752737316419,1223.83047102,0.00017,2]
[372658067,1752737383114,823.82096,0.00013699,2]
[372658108,1752737432934,-300.0,0.00017999,2]
[372658109,1752737432947,-235.94791132,0.00017999,2]
[372658110,1752737432958,-64.05208868,0.00017999,2]
[372658111,1752737432968,-300.0,0.00017999,2]
[372658112,1752737432977,-740.63677467,0.00017999,2]
[372658113,1752737432990,-459.36322533,0.00017999,2]
[372658114,1752737432999,-460.0,0.00017999,2]
[372658115,1752737433008,-283.19677467,0.00017999,2]
[372658116,1752737433021,-176.80322533,0.00017999,2]
[372658117,1752737433030,-460.0,0.00017999,2]
[372658118,1752737433039,-460.9288975,0.00017999,2]
[372658119,1752737433049,-5737.26787718,0.00018,2]
[372658120,1752737433061,-5014.0082651,0.00018,2]
[372658122,1752737433076,-1265.07201891,0.00018,2]
[372658149,1752737438694,-309.29808159,0.00017999,2]
[372658157,1752737438769,-150.70191841,0.00017999,2]
[372658159,1752737438778,-372.84815117,0.00017999,2]
[372658161,1752737438788,-897.14946565,0.00017999,2]
[372658163,1752737438798,-897.14946565,0.00017999,2]
[372658165,1752737438807,-897.14946565,0.00017999,2]
[372658167,1752737438817,-897.14946565,0.00017999,2]
[372658169,1752737438827,-897.14946565,0.00017999,2]
[372658171,1752737438836,-897.14946565,0.00017999,2]
[372658173,1752737438845,-897.14946565,0.00017999,2]
[372658176,1752737438854,-897.14946565,0.00017999,2]
[372658178,1752737438864,-224.95721393,0.00017999,2]
[372658180,1752737438874,-897.14946565,0.00017999,2]
[372658182,1752737438883,-897.14946565,0.00017999,2]
[372658184,1752737438896,-22394.33242098,0.00018,2]
[372658186,1752737438906,-12694.18448564,0.00018,2]
[372658188,1752737438916,-207.4,0.000181,2]
[372658190,1752737438926,-460.0,0.00018107,2]
[372658192,1752737438935,-460.0,0.00018107,2]
[372658194,1752737438948,-460.0,0.00018107,2]
[372658196,1752737438957,-460.0,0.00018107,2]
[372658198,1752737438966,-460.0,0.00018107,2]
[372658200,1752737438976,-460.0,0.00018107,2]
[372658202,1752737438985,-460.0,0.00018107,2]
[372658204,1752737438995,-460.0,0.00018107,2]
[372658206,1752737439004,-460.0,0.00018107,2]
[372658208,1752737439014,-946.38,0.00018107,2]
[372658210,1752737439024,-460.0,0.00018107,2]
[372658212,1752737439033,-460.0,0.00018108,2]
[372658214,1752737439043,-460.0,0.00018108,2]
[372658216,1752737439053,-460.0,0.00018109,2]
[372658218,1752737439063,-460.0,0.00018109,2]
[372658220,1752737439072,-1343.71,0.00018109,2]
[372658222,1752737439082,-1954.51,0.00018109,2]
[372658224,1752737439092,-460.0,0.00018109,2]
[372658226,1752737439102,-460.0,0.00018109,2]
[372658228,1752737439111,-460.0,0.00018109,2]
[372658230,1752737439121,-460.0,0.00018109,2]
[372658232,1752737439131,-460.0,0.00018109,2]
[372658234,1752737439142,-1088.86,0.00018109,2]
[372658236,1752737439151,-460.0,0.00018109,2]
[372658238,1752737439161,-805.58,0.00018109,2]
[372658239,1752737439171,-460.0,0.00018109,2]
[372658241,1752737439180,-460.0,0.00018109,2]